bitfinex/quotes_ETHUSD_20251024
["timestamp","ask_amount","ask_price","bid_price","bid_amount"]
[1761313786802,1.18871183,3928.3,3926.7,2.54666768]
[1761313786803,0.66097624,3928.1,3926.9,2.54653381]
[1761313787137,0.66097624,3928.1,3926.3,2.54687723]
[1761313787138,0.66097624,3928.2,3927.6,2.54602324]
[1761313787314,0.30741017,3928.3,3927.8,2.54591404]
[1761313787315,0.66097624,3928.3,3927.8,2.54591404]
[1761313787522,0.66097624,3928.4,3927.1,2.54640829]
[1761313787689,0.4086,3928.2,3927.0,3.754]
[1761313787887,0.36152376,3928.1,3927.0,3.754]
[1761313788210,0.4086,3928.2,3927.1,2.54640829]
[1761313788394,0.4086,3928.2,3926.0,0.4453]
[1761313788395,1.5552,3928.1,3926.0,0.4453]
[1761313788594,0.66097624,3927.9,3926.8,2.54658343]
[1761313788905,1.1962745,3927.9,3927.4,2.5461727]
[1761313789096,0.53529826,3927.8,3927.5,2.54608549]
[1761313789297,0.53529826,3927.8,3926.8,3.749]
[1761313789298,0.66097624,3928.2,3926.9,2.54653798]
[1761313789511,1.1962745,3928.3,3926.9,2.54653798]
[1761313789693,1.1962745,3928.2,3927.3,2.54622099]
[1761313789893,1.1962745,3928.2,3927.6,2.54607223]
[1761313790203,3.07410166,3928.5,3928.0,2.54582484]
[1761313790204,0.53529826,3928.1,3928.0,2.54582484]
[1761313790528,0.001,3928.5,3928.2,2.54563771]
[1761313790691,0.001,3928.5,3927.6,3.744]
[1761313790892,0.001,3928.5,3927.5,0.2347]
[1761313790893,0.001,3928.5,3927.8,2.99125207]
[1761313791217,0.001,3928.5,3928.4,2.54556562]
[1761313791412,0.1282,3928.5,3928.4,2.54556562]
[1761313791813,0.001,3928.5,3928.4,3.01956562]
[1761313792018,0.001,3928.5,3928.4,3.57608699]
[1761313793626,0.001,3928.5,3928.4,3.97515858]
[1761313793800,0.001,3928.5,3928.4,3.57608699]
[1761313794738,0.001,3928.5,3928.4,5.63816699]
[1761313795296,0.001,3928.5,3928.4,7.43935858]
[1761313795623,0.001,3928.5,3928.4,7.54716699]
[1761313796226,0.001,3928.5,3928.4,11.27316699]
[1761313796428,0.001,3928.5,3928.4,7.54716699]
[1761313796833,1e-08,3929.9,3929.8,2.54465876]
[1761313797025,1e-08,3929.9,3929.8,6.99679891]
[1761313797334,1e-08,3929.9,3929.8,1.20064015]
[1761313797503,1e-08,3929.9,3928.4,0.55652137]
[1761313797699,1e-08,3929.9,3926.3,0.05]
[1761313797700,0.2045,3928.4,3927.1,0.2212]
[1761313797898,0.1717,3928.8,3927.2,0.02546343]
[1761313798213,0.1687,3930.0,3927.2,0.02546343]
[1761313798214,0.2355,3929.2,3928.2,2.54567125]
[1761313798535,0.1687,3930.0,3928.5,2.54548547]
[1761313798830,0.1687,3930.0,3928.3,1.58]
[1761313798831,0.1687,3930.0,3928.3,0.25456713]
[1761313799030,2.54496963,3929.4,3928.2,2.54564266]
[1761313799232,0.2355,3929.3,3928.3,0.708]
[1761313799414,0.2355,3929.3,3928.4,2.5455349]
[1761313799734,0.2355,3929.3,3928.5,2.54544181]
[1761313799923,0.2355,3929.3,3928.4,3.748]
[1761313800236,0.2355,3929.3,3926.9,2.54653389]
[1761313800237,0.3577,3929.2,3927.1,0.2212]
[1761313800535,0.2057,3927.2,3925.7,0.2122]
[1761313800835,0.2057,3927.2,3925.6,0.002]
[1761313801150,0.2057,3927.2,3925.7,0.6917]
[1761313801310,0.2072,3927.7,3925.8,2.88929127]
[1761313801511,0.3547,3927.4,3925.8,0.34207]
[1761313801751,0.2072,3927.7,3927.0,2.54645052]
[1761313801948,0.2072,3927.7,3925.9,0.4705]
[1761313802240,2.90079944,3927.6,3926.2,2.54698723]
[1761313802442,0.31079994,3927.5,3926.6,2.54672484]
[1761313802630,0.31079994,3927.5,3926.3,2.54690408]
[1761313802631,0.3547,3928.3,3926.4,0.02546862]
[1761313802809,0.1272,3928.3,3927.4,0.1272]
[1761313803013,0.1272,3928.0,3927.9,2.54588966]
[1761313803644,0.1272,3928.5,3927.9,1.48148847]
[1761313803828,0.1272,3929.2,3928.0,0.4705]
[1761313804032,0.1272,3929.2,3928.4,0.1272]
[1761313804239,0.5865,3929.7,3928.5,3.744]
[1761313804422,0.1272,3929.4,3929.3,2.54498256]
[1761313804744,0.1687,3930.0,3929.6,2.54478827]
[1761313804745,0.1272,3929.7,3929.6,2.54478827]
[1761313805114,0.001,3930.3,3929.3,3.8702]
[1761313805115,0.1272,3929.9,3929.3,3.8702]
[1761313805345,0.001,3930.3,3930.2,2.54439977]
[1761313805711,0.1282,3930.3,3930.2,2.54439977]
[1761313805906,0.1282,3930.3,3929.7,0.1272]
[1761313806240,0.001,3930.3,3930.2,2.54439977]
[1761313807257,0.001,3930.3,3929.5,0.2212]
[1761313807548,0.001,3930.3,3930.2,2.54439977]
[1761313807753,0.001,3930.3,3930.2,6.27939977]
[1761313808227,0.001,3930.3,3930.2,7.1617885]
[1761313808617,0.001,3930.3,3930.2,7.6322885]
[1761313809213,0.001,3930.3,3930.2,3.8972885]
[1761313809543,0.001,3930.3,3930.2,7.1577885]
[1761313809747,0.001,3930.3,3930.2,4.61338873]
[1761313810041,0.001,3930.3,3930.2,6.27439977]
[1761313810247,0.001,3930.3,3930.2,6.74489977]
[1761313810948,0.001,3930.3,3930.2,6.74389977]
[1761313811143,0.001,3930.3,3930.2,2.54439977]
[1761313811344,0.001,3930.3,3930.2,6.74089977]
[1761313811562,0.001,3930.3,3930.2,3.94344253]
[1761313811846,0.001,3930.3,3930.2,7.67044253]
[1761313812022,0.001,3930.3,3930.2,3.94344253]
[1761313812228,0.001,3930.3,3930.2,7.67244253]
[1761313812655,0.001,3930.3,3928.6,3.15369968]
[1761313812825,0.3333,3930.3,3928.6,2.76663153]
[1761313813027,0.3333,3930.3,3928.6,0.2212]
[1761313813028,2.54439977,3930.2,3928.6,0.2212]
[1761313813241,0.3323,3930.1,3928.7,3.139]
[1761313813436,0.001,3930.3,3927.2,0.57193826]
[1761313813637,0.3333,3930.3,3928.4,0.4705]
[1761313813817,2.54464725,3929.9,3928.7,2.54534181]
[1761313814018,1.5552,3930.0,3928.9,2.54524167]
[1761313814255,0.3323,3930.0,3928.9,2.54524167]
[1761313814431,0.3323,3929.9,3929.0,2.54516593]
[1761313814752,2.54467153,3929.8,3928.6,0.2212]
[1761313814942,0.1319,3929.1,3927.1,0.2212]
[1761313815255,0.1319,3929.1,3926.0,2.76828762]
[1761313815256,0.1319,3929.1,3926.6,0.2212]
[1761313815560,0.50688,3928.6,3926.7,0.659]
[1761313815769,0.50688,3928.6,3926.6,0.738]
[1761313815770,1.5552,3927.8,3926.6,0.738]
[1761313815918,0.447808,3928.5,3926.7,0.02546667]
[1761313816115,0.447808,3928.5,3927.1,2.546347]
[1761313816116,0.1272,3927.3,3927.1,2.546347]
[1761313816320,0.1272,3927.3,3926.7,0.1272]
[1761313816533,2.54549908,3928.6,3926.1,0.1272]
[1761313816534,0.1272,3926.8,3926.1,0.1272]
[1761313816722,0.1272,3926.8,3925.6,0.002]
[1761313816723,1.5552,3926.7,3925.6,0.002]
[1761313816950,0.15552,3926.6,3925.6,0.002]
[1761313817267,0.74848,3927.1,3925.6,0.002]
[1761313817557,0.50688,3926.4,3925.6,0.002]
[1761313817763,2.54706103,3926.1,3925.6,0.002]
[1761313818058,2.54713225,3926.0,3925.6,0.002]
[1761313818265,4.34374305,3926.3,3925.6,0.002]
[1761313818266,0.2416,3926.3,3925.6,0.002]
[1761313818558,0.2416,3927.0,3926.1,2.54699606]
[1761313818755,0.2416,3927.0,3925.6,0.002]
[1761313818958,0.2416,3927.0,3925.9,2.5471749]
[1761313819162,0.2416,3927.0,3925.6,2.92]
[1761313819163,0.2416,3927.0,3926.2,2.54697824]
[1761313819365,0.2416,3927.0,3925.6,0.002]
[1761313819534,0.2416,3927.0,3925.8,2.54724992]
[1761313819734,0.2416,3927.0,3925.6,0.002]
[1761313819935,0.2416,3927.0,3925.6,2.54934617]
[1761313820132,0.2416,3927.0,3925.7,2.54731108]
[1761313820462,1.5552,3926.7,3925.6,0.002]
[1761313820667,1.5552,3925.8,3925.6,0.002]
[1761313820969,1.27958336,3926.6,3925.6,0.002]
[1761313820970,0.50688,3926.5,3925.6,0.002]
[1761313821164,0.230368,3926.4,3925.6,0.002]
[1761313821371,4.1025164,3925.7,3925.6,0.002]
[1761313821568,4.6093964,3925.7,3925.6,0.002]
[1761313821774,8.5729964,3925.7,3925.6,0.002]
[1761313821974,4.10271108,3925.4,3925.3,0.002]
[1761313822271,6.06065828,3925.4,3925.3,0.002]
[1761313822443,3.4558672,3925.4,3925.3,0.002]
[1761313822647,6.00337828,3925.4,3925.3,0.002]
[1761313822947,6.51025828,3925.4,3925.3,0.002]
[1761313824078,0.5801,3925.4,3925.3,0.002]
[1761313824290,0.4515,3926.3,3925.3,0.002]
[1761313824451,1.446,3927.0,3926.1,2.54704189]
[1761313824637,0.4483,3926.9,3925.3,0.002]
[1761313824958,0.4483,3926.9,3925.4,2.54751108]
[1761313825134,2.0035,3926.9,3925.6,2.54731986]
[1761313825335,2.54674564,3926.6,3925.5,2.54744575]
[1761313825535,2.54674564,3926.6,3925.3,2.54955156]
[1761313825536,3.10090661,3926.6,3925.3,2.54955156]
[1761313825755,0.55416097,3926.6,3925.3,0.002]
[1761313825968,0.4483,3926.7,3926.0,2.54710247]
[1761313826493,4.45495301,3927.9,3926.0,2.54706185]
[1761313826494,0.4483,3927.4,3926.0,2.54706185]
[1761313826648,3.725,3927.8,3926.0,2.54706185]
[1761313826649,0.1272,3926.7,3926.6,2.54673254]
[1761313826848,0.1272,3926.7,3925.2,0.2203]
[1761313827181,0.1272,3926.7,3922.9,2.54911516]
[1761313827182,2.80751108,3925.4,3924.0,0.1272]
[1761313827484,2.80751108,3925.4,3922.7,0.136]
[1761313827485,6.42746219,3925.4,3922.7,0.136]
[1761313827694,1.5552,3925.3,3923.0,0.444]
[1761313827882,2.0015,3925.3,3923.0,0.444]
[1761313828081,0.4463,3925.2,3922.8,0.14]
[1761313828386,0.6746562,3925.2,3924.2,2.54827513]
[1761313828595,0.6746562,3925.2,3923.4,0.444]
[1761313828596,3.75275111,3925.4,3923.4,0.444]
[1761313828797,0.4463,3925.1,3923.5,3.733]
[1761313829002,2.19755111,3925.4,3924.6,2.54803037]
[1761313829296,2.19755111,3925.4,3924.4,2.54813715]
[1761313829297,1.9168,3925.4,3924.4,2.54813715]
[1761313829597,1.9168,3925.4,3924.7,2.54796388]
[1761313829769,1.9168,3925.4,3924.3,2.54822364]
[1761313829952,1.9168,3925.4,3924.6,2.54802809]
[1761313830275,1.9168,3925.4,3924.7,2.54792957]
[1761313830449,0.4432,3926.5,3924.7,0.25539296]
[1761313830784,2.54700003,3926.2,3925.2,2.5476191]
[1761313830957,3.75005979,3926.5,3924.4,2.99215741]
[1761313830958,2.5469152,3926.4,3925.3,2.54756514]
[1761313831160,0.2345,3926.6,3924.5,0.45]
[1761313831363,2.99006022,3926.5,3925.4,2.54745171]
[1761313831574,2.99006022,3926.5,3925.5,2.54742695]
[1761313831575,2.99000445,3926.5,3925.5,2.54742695]
[1761313831761,2.99000445,3926.5,3925.7,2.54726305]
[1761313831762,0.4432,3926.5,3925.7,2.54726305]
[1761313831967,0.2345,3926.6,3925.6,2.54736832]
[1761313832175,0.4432,3927.1,3924.8,0.444]
[1761313832176,0.2354,3927.0,3924.8,0.444]
[1761313832391,2.54645141,3927.1,3926.0,2.54706916]
[1761313832693,0.2354,3927.0,3925.6,0.2203]
[1761313832892,1.7982,3927.4,3925.6,0.2203]
[1761313832893,2.54629192,3927.3,3926.2,2.5469404]
[1761313833097,0.243,3927.4,3925.7,0.27677302]
[1761313833265,2.2405,3927.4,3926.5,2.54674799]
[1761313833470,2.2405,3927.4,3923.4,0.444]
[1761313833471,2.54795175,3924.8,3923.4,0.444]
[1761313833673,2.54795175,3924.8,3922.7,2.552203]
[1761313833674,2.78343037,3924.6,3924.5,0.008]
[1761313833879,4.98857341,3924.6,3924.5,0.008]
[1761313834115,1.5552,3924.2,3922.7,0.003]
[1761313834405,3.05517009,3924.2,3924.1,0.002]
[1761313834626,3.05517009,3924.2,3922.7,0.003]
[1761313834627,4.10439955,3922.8,3922.7,0.003]
[1761313835329,4.74077955,3922.8,3922.7,0.0017]
[1761313835833,4.23389955,3922.8,3922.7,0.0017]
[1761313836035,5.81722049,3922.8,3922.7,0.0017]
[1761313836327,5.81722049,3922.8,3920.2,3.31843633]
[1761313836328,1.5552,3921.6,3920.2,3.31848083]
[1761313836529,2.54995045,3921.7,3920.3,0.444]
[1761313836530,1.5552,3921.7,3920.3,0.444]
[1761313836703,1.5552,3921.7,3921.0,2.55036615]
[1761313837027,2.08582,3921.7,3920.3,0.444]
[1761313837229,2.08582,3921.7,3920.2,0.7676]
[1761313837399,2.08582,3921.7,3920.5,2.55067179]
[1761313837596,0.1282,3922.1,3920.2,3.31847096]
[1761313837597,0.1282,3922.1,3920.3,0.444]
[1761313837823,0.1272,3920.3,3920.2,0.7676]
[1761313838734,0.1272,3920.3,3920.2,3.76249026]
[1761313838902,3.752,3921.5,3920.2,1.80814903]
[1761313839099,0.1272,3920.9,3920.6,2.55059499]
[1761313839300,0.1272,3920.7,3920.2,0.7676]
[1761313839617,1.6845,3921.4,3920.3,2.55082519]
[1761313839618,0.1272,3920.4,3920.3,2.55082519]
[1761313839804,0.1272,3920.4,3920.2,0.7676]
[1761313840130,0.2343,3921.9,3920.3,2.99482519]
[1761313840447,0.88130166,3923.5,3920.3,2.99482519]
[1761313840448,0.3657,3922.9,3920.5,2.55069506]
[1761313840612,0.3657,3922.9,3921.3,2.55011546]
[1761313840613,0.1272,3921.7,3921.3,2.55011546]
[1761313840937,0.1272,3921.5,3921.3,2.55016853]
[1761313841141,1.6855,3922.8,3920.2,1.4319]
[1761313841437,0.19209,3922.7,3922.0,2.5496641]
[1761313841611,0.1303,3922.8,3920.5,2.55069506]
[1761313841804,0.1303,3922.8,3921.8,2.54983827]
[1761313842001,1.5552,3922.6,3920.5,0.444]
[1761313842309,0.1303,3922.8,3920.3,0.14319]
[1761313842310,0.1303,3922.8,3920.4,0.444]
[1761313842510,1.7906,3922.9,3920.4,0.444]
[1761313842511,1.5552,3922.5,3920.4,0.444]
[1761313842824,0.1303,3922.7,3920.5,0.4125861]
[1761313843133,1.5552,3922.7,3920.7,2.55056495]
[1761313843535,1.5552,3922.7,3921.8,2.54980362]
[1761313843846,0.2354,3922.9,3922.1,2.54964509]
[1761313844000,0.2354,3922.9,3921.0,2.5503698]
[1761313844001,3.754,3923.2,3921.7,0.2203]
[1761313844305,3.754,3923.2,3921.4,0.444]
[1761313844306,2.54920353,3922.8,3921.4,0.444]
[1761313844507,2.54937405,3922.6,3921.3,2.55017464]
[1761313844736,0.75413,3923.1,3921.5,2.54999457]
[1761313844737,2.54940799,3922.5,3921.5,2.54999457]
[1761313845052,0.1313,3923.0,3920.1,0.444]
[1761313845053,2.55026711,3921.2,3920.1,0.444]
[1761313845200,2.54952451,3922.3,3920.1,0.444]
[1761313845201,1.5552,3921.9,3920.4,2.55074539]
[1761313845395,1.5552,3921.9,3920.3,2.55082213]
[1761313845396,2.55019167,3921.3,3920.3,2.55082213]
[1761313845593,0.1313,3921.8,3920.2,0.7676]
[1761313845821,2.54996779,3921.7,3920.2,0.7676]
[1761313846033,0.1313,3921.8,3920.2,0.7676]
[1761313846218,0.1313,3922.2,3921.1,2.55030376]
[1761313846419,0.1313,3922.2,3921.4,2.55009611]
[1761313846625,0.52919671,3922.4,3920.6,2.55063]
[1761313846796,0.52919671,3922.4,3920.4,0.444]
[1761313846797,3.75,3922.7,3920.4,0.444]
[1761313847004,6.29931886,3922.7,3921.7,2.54988741]
[1761313847322,0.1313,3922.9,3920.6,2.55063]
[1761313847504,0.62283,3923.1,3922.4,2.54941081]
[1761313847505,0.2344,3923.1,3922.4,2.54941081]
[1761313847704,0.2344,3923.1,3922.3,2.54947671]
[1761313847904,0.2344,3923.1,3922.5,2.5493868]
[1761313848106,0.2344,3923.1,3922.6,2.54932696]
[1761313848342,0.5294863,3923.5,3922.6,2.54932696]
[1761313848343,3.07823274,3923.5,3922.6,2.54932627]
[1761313848505,0.5294863,3923.4,3921.9,2.54978454]
[1761313848699,0.89134097,3923.9,3921.9,2.54978454]
[1761313848700,0.2326,3923.9,3922.4,2.54945951]
[1761313848900,0.79114097,3924.2,3922.2,0.444]
[1761313848901,0.1324,3924.2,3922.2,0.444]
[1761313849101,0.1324,3924.2,3922.4,2.54945951]
[1761313849333,0.1324,3924.2,3922.2,0.444]
[1761313849334,0.1324,3924.2,3922.5,0.30189548]
[1761313849514,0.52982015,3924.4,3923.8,2.54848963]
[1761313849721,2.08502015,3924.4,3923.8,2.54848963]
[1761313850038,0.1334,3924.9,3923.3,2.54887467]
[1761313850236,0.1334,3924.9,3924.0,2.54836954]
[1761313850531,0.66478956,3924.9,3922.6,0.6643]
[1761313850735,2.54821011,3924.4,3922.6,0.6643]
[1761313850936,3.07961126,3924.3,3922.7,0.444]
[1761313851138,2.54809281,3924.6,3922.9,0.1272]
[1761313851139,0.26813679,3924.6,3922.9,0.1272]
[1761313851338,0.1272,3924.1,3923.5,0.1272]
[1761313851548,0.1272,3924.1,3923.9,2.54846937]
[1761313851756,0.1272,3924.1,3923.5,0.1272]
[1761313851757,0.1272,3924.1,3924.0,2.54841997]
[1761313851960,0.65874097,3925.5,3923.6,0.4426]
[1761313852112,0.1272,3924.7,3924.6,2.54802162]
[1761313852316,0.1272,3924.7,3924.2,2.67548735]
[1761313852508,0.1272,3924.7,3924.2,0.5698]
[1761313852810,0.001,3925.6,3925.1,2.54770171]
[1761313853161,0.001,3925.6,3924.5,0.1272]
[1761313853162,0.1272,3925.2,3924.5,0.1272]
[1761313853311,0.1272,3924.8,3924.3,0.5698]
[1761313853509,0.001,3925.6,3925.0,2.54776359]
[1761313853734,0.1272,3925.1,3925.0,2.5477707]
[1761313853960,0.1272,3925.1,3924.4,3.11795927]
[1761313854244,0.001,3925.6,3924.4,3.11795927]
[1761313854245,0.1272,3924.7,3924.6,2.54800469]
[1761313854421,0.1272,3924.7,3924.6,2.54803037]
[1761313854612,0.1272,3924.7,3924.1,0.3505]
[1761313854946,0.1272,3924.7,3924.6,2.54803037]
[1761313855110,0.1272,3924.9,3924.6,2.54797701]
[1761313855307,0.1272,3924.9,3924.4,0.1272]
[1761313855533,0.1272,3924.9,3924.7,2.54791542]
[1761313855722,0.1272,3924.9,3924.5,2.54809529]
[1761313855923,0.216,3925.5,3924.8,2.54790052]
[1761313856161,0.001,3925.6,3924.6,2.54801703]
[1761313856320,0.001,3925.6,3925.1,2.54765419]
[1761313856547,0.001,3925.6,3925.1,2.54768205]
[1761313856751,0.001,3925.6,3925.2,2.5476311]
[1761313856976,0.001,3925.6,3925.3,2.54753191]
[1761313857178,0.001,3925.6,3925.3,2.54751874]
[1761313857488,0.001,3925.6,3924.5,0.4674]
[1761313857689,0.001,3925.6,3925.1,2.54764556]
[1761313857897,0.001,3925.6,3924.8,2.54788121]
[1761313858188,2.76284618,3925.5,3924.6,2.54800991]
[1761313858391,2.76284618,3925.5,3924.1,0.2233]
[1761313858392,0.49178462,3925.5,3924.1,0.2233]
[1761313858588,0.2154,3925.5,3924.1,0.2233]
[1761313858890,0.2154,3925.5,3922.1,2.5495974]
[1761313858891,0.65874097,3924.8,3922.7,0.655]
[1761313859045,0.65874097,3924.8,3922.6,0.2203]
[1761313859046,0.65874097,3924.6,3922.6,0.2203]
[1761313859247,0.88130166,3924.8,3922.7,0.4674]
[1761313859248,1.70920426,3924.5,3922.7,0.4674]
[1761313859558,0.65874097,3925.4,3922.7,0.4674]
[1761313859897,0.65874097,3925.3,3923.9,2.54847734]
[1761313860103,0.65874097,3925.3,3924.1,2.54829584]
[1761313860104,0.81374097,3925.3,3924.1,2.54829584]
[1761313860249,0.81374097,3925.3,3922.7,0.4674]
[1761313860250,0.53181285,3925.2,3923.6,2.54867978]
[1761313860558,0.2154,3925.5,3922.8,0.79109451]
[1761313860559,0.2148,3925.4,3923.7,0.4674]
[1761313860762,0.2148,3925.4,3922.6,2.76961802]
[1761313860763,2.54788119,3924.9,3924.0,2.54836633]
[1761313861082,3.07976356,3924.8,3923.2,2.54893964]
[1761313861280,3.07976356,3924.8,3922.9,0.4674]
[1761313861281,1.11011641,3924.7,3922.9,0.4674]
[1761313861578,1.11011641,3924.7,3922.6,0.2203]
[1761313861579,0.1556,3924.6,3922.6,0.2203]
[1761313861781,2.54828626,3924.3,3923.2,2.54888626]
[1761313861945,3.08012081,3924.2,3922.6,0.6877]
[1761313862148,2.5483046,3924.2,3922.6,0.6877]
[1761313862372,0.53226131,3924.1,3922.8,5.0983991]
[1761313862680,0.65874097,3924.6,3922.8,5.0983991]
[1761313862681,0.1556,3924.6,3923.5,2.54870575]
[1761313862868,2.70363053,3924.6,3923.7,2.54857379]
[1761313863067,3.02722889,3924.6,3923.8,2.54853715]
[1761313863271,0.53280891,3924.5,3923.9,2.54847226]
[1761313863469,0.68842751,3924.6,3923.4,2.54876213]
[1761313863673,2.54816022,3924.4,3922.9,0.4674]
[1761313863873,0.1556,3924.5,3923.4,2.54876345]
[1761313863874,3.08107654,3924.3,3923.4,2.54876345]
[1761313864054,0.53282751,3924.2,3922.6,0.2203]
[1761313864255,2.54830494,3924.2,3923.1,2.54899343]
[1761313864451,0.53282751,3924.1,3923.1,2.54899343]
[1761313864684,0.53282751,3924.1,3922.6,0.2203]
[1761313864685,0.91692751,3924.1,3923.2,2.54893465]
[1761313864850,0.91692751,3924.1,3922.6,0.2203]
[1761313864851,0.53282751,3924.0,3922.6,0.2203]
[1761313865053,5.03695249,3924.9,3922.7,0.49289264]
[1761313865054,0.65874097,3924.9,3922.7,0.49289264]
[1761313865384,0.001,3925.6,3925.3,2.5475509]
[1761313865563,0.001,3925.6,3924.8,0.2172]
[1761313865955,0.001,3925.6,3925.5,2.54744618]
[1761313866149,0.001,3925.6,3925.5,3.01484618]
[1761313866348,0.001,3925.6,3925.5,3.60927819]
[1761313866550,0.001,3925.6,3925.5,3.58380373]
[1761313867171,0.001,3925.6,3925.5,3.60927819]
[1761313867586,0.001,3925.6,3925.5,5.67135819]
[1761313867819,0.65874097,3928.8,3926.3,0.2172]
[1761313867954,0.1482,3929.7,3926.9,2.54653798]
[1761313867955,2.54507775,3929.2,3926.9,2.54653798]
[1761313868151,0.53316355,3929.1,3927.0,2.54647313]
[1761313868349,0.2292,3929.6,3926.3,0.2172]
[1761313868350,0.149,3929.4,3927.1,0.30533531]
[1761313868572,0.149,3929.4,3926.9,0.4674]
[1761313868573,2.54536985,3928.8,3927.8,2.54594674]
[1761313868771,0.80774097,3929.3,3927.3,0.4674]
[1761313868972,2.6939927,3929.3,3928.2,2.54566389]
[1761313869296,0.80190449,3929.2,3928.1,2.54575591]
[1761313869614,0.88130166,3929.8,3925.2,12.5601093]
[1761313869615,0.65874097,3929.8,3925.2,12.5601093]
[1761313869901,0.65874097,3929.6,3926.2,0.50688]
[1761313870066,2.54504037,3929.3,3928.1,2.54575673]
[1761313870263,2.7995724,3929.2,3928.2,2.54563348]
[1761313870505,2.54506836,3929.2,3928.3,2.54561556]
[1761313870696,1.675,3929.9,3927.4,3.705]
[1761313871191,0.001,3930.3,3927.5,0.02546148]
[1761313871375,0.001,3930.3,3928.0,1.5552]
[1761313871603,0.001,3930.3,3928.3,0.50688]
[1761313871804,0.001,3930.3,3927.8,1.5552]
[1761313872005,0.001,3930.3,3927.6,1.62905708]
[1761313872006,0.001,3930.3,3928.2,1.5552]
[1761313872206,0.001,3930.3,3927.6,1.62905708]
[1761313872207,0.0002,3930.3,3928.3,0.565616]
[1761313872520,0.0002,3930.3,3929.1,2.54509642]
[1761313872521,2.54455885,3930.0,3929.1,2.54509642]
[1761313872823,0.0002,3930.3,3927.7,2.54601929]
[1761313872824,2.5449264,3929.4,3927.7,2.54601929]
[1761313873046,0.0002,3930.3,3927.8,3.72145954]
[1761313873189,0.0002,3930.3,3928.0,2.54582484]
[1761313873391,0.001,3929.2,3927.9,0.37214595]
[1761313873623,0.001,3929.2,3928.4,2.54554953]
[1761313873795,0.001,3929.2,3929.0,2.5451505]
[1761313873994,0.001,3929.2,3929.1,2.54511211]
[1761313876710,0.001,3929.2,3929.1,2.67231211]
[1761313876903,0.001,3929.2,3928.0,2.54578166]
[1761313876904,0.001,3929.2,3927.5,0.50688]
[1761313877117,0.001,3929.2,3926.9,12.5601093]
[1761313877118,0.001,3929.2,3927.6,0.30530938]
[1761313877321,0.001,3929.2,3929.1,2.54511211]
[1761313877322,0.1282,3929.2,3929.1,2.54511211]
[1761313877495,0.1282,3929.2,3929.0,2.5451755]
[1761313877841,0.001,3929.2,3929.1,2.54511211]
[1761313878024,0.001,3929.2,3929.1,2.67231211]
[1761313878330,0.001,3929.2,3926.9,12.5601093]
[1761313878491,0.001,3929.2,3928.8,2.54525483]
[1761313878698,0.001,3929.2,3929.1,2.54511211]
[1761313879109,0.001,3929.2,3929.1,6.22911211]
[1761313879451,0.001,3929.2,3929.1,6.35631211]
[1761313879653,0.001,3929.2,3927.9,0.50688]
[1761313879862,0.001,3929.2,3927.2,3.683]
[1761313879863,0.25459906,3929.1,3927.2,3.683]
[1761313880004,0.001,3929.2,3927.3,3.69]
[1761313880210,0.001,3929.2,3926.4,2.54686226]
[1761313880404,0.001,3929.2,3926.3,0.002]
[1761313880405,2.54530631,3928.9,3927.7,2.54596901]
[1761313880610,0.001,3929.2,3926.7,2.54666768]
[1761313880909,2.54537193,3928.7,3927.8,2.54589493]
[1761313881104,0.25453719,3928.6,3927.8,2.54589493]
[1761313881740,0.25453719,3928.6,3926.6,1.5552]
[1761313881926,0.25453719,3928.6,3927.3,2.54622857]
[1761313882106,2.06208,3928.4,3926.3,2.54892019]
[1761313882315,2.54592716,3927.9,3926.4,2.967]
[1761313882520,0.25459272,3927.8,3927.1,2.54636579]
[1761313882727,0.25459272,3927.8,3927.0,2.54643171]
[1761313883048,2.80056515,3927.8,3927.0,2.54643171]
[1761313883344,2.54621394,3927.4,3926.3,2.54887459]
[1761313883646,0.5092299,3927.3,3926.3,2.54887459]
[1761313883812,0.5092299,3927.3,3926.5,2.54679435]
[1761313884013,0.5092299,3927.3,3926.6,2.54672083]
[1761313884414,0.5092299,3927.3,3926.7,2.54666701]
[1761313884610,2.80054912,3927.8,3926.9,2.54647947]
[1761313884810,0.25459272,3927.8,3926.9,2.54651815]
[1761313885044,0.66289496,3928.6,3926.3,0.002]
[1761313885045,0.50688,3928.4,3926.3,0.002]
[1761313885246,1.5552,3927.9,3926.3,0.002]
[1761313885549,0.53066042,3928.5,3926.3,0.002]
[1761313885550,0.66289496,3929.0,3926.4,2.54686226]
[1761313885753,0.88230166,3929.2,3926.4,2.54686226]
[1761313885754,0.001,3929.2,3926.9,1.5552]
[1761313886053,0.001,3929.2,3927.1,0.50688]
[1761313886250,0.001,3929.2,3929.1,2.54511211]
[1761313886449,0.001,3929.2,3929.0,2.5451587]
[1761313886660,0.001,3929.2,3929.1,2.54511211]
[1761313886955,0.001,3929.2,3929.1,6.21811211]
[1761313887160,0.001,3929.2,3929.1,9.15651919]
[1761313887365,0.001,3929.2,3929.1,9.16451919]
[1761313887664,0.001,3929.2,3929.1,4.97663919]
[1761313887954,0.001,3929.2,3929.1,8.68309031]
[1761313888156,0.001,3929.2,3929.1,3.42143919]
[1761313888330,0.001,3929.2,3929.1,2.54511211]
[1761313889454,0.001,3929.2,3926.3,0.002]
[1761313889653,0.001,3929.2,3929.1,2.54511211]
[1761313889855,0.001,3929.2,3928.8,0.1272]
[1761313890057,0.001,3929.2,3926.3,0.002]
[1761313890262,0.001,3929.2,3928.0,2.54577875]
[1761313890557,0.001,3929.2,3928.1,0.0254576]
[1761313890851,0.001,3929.2,3927.7,2.418]
[1761313890852,0.001,3929.2,3928.6,2.54539148]
[1761313891075,0.001,3929.2,3927.3,2.54627861]
[1761313891259,0.001,3929.2,3928.7,2.54531551]
[1761313891425,0.001,3929.2,3928.5,2.54549799]
[1761313891627,0.001,3929.2,3928.7,2.54533456]
[1761313892163,0.001,3929.2,3928.8,2.54524771]
[1761313892358,0.001,3929.2,3927.9,2.54588966]